[Event "Live Chess"]
[Site "Chess.com"]
[Date "2024.06.01"]
[Round "-"]
[White "alicechristina"]
[Black "FlyingChessKestrel13"]
[Result "1-0"]
[WhiteElo "1921"]
[BlackElo "2062"]
[TimeControl "300"]
[EndTime "13:23:04 PDT"]
[Termination "alicechristina won by resignation"]

1. c4 {[%clk 0:04:55.2]} 1... c5 {[%clk 0:04:58.5]} 2. Nc3 {[%clk 0:04:53.8]}
2... Nc6 {[%clk 0:04:58.1]} 3. g3 {[%clk 0:04:52.7]} 3... e6 {[%clk 0:04:57.3]}
4. Bg2 {[%clk 0:04:52.2]} 4... g6 {[%clk 0:04:57.2]} 5. e4 {[%clk 0:04:51.7]}
5... Bg7 {[%clk 0:04:56.8]} 6. Nge2 {[%clk 0:04:51.3]} 6... Nd4 {[%clk 0:04:56]}
7. O-O {[%clk 0:04:50.3]} 7... Ne7 {[%clk 0:04:54.5]} 8. Nxd4 {[%clk 0:04:49.2]}
8... cxd4 {[%clk 0:04:53.4]} 9. Ne2 {[%clk 0:04:48.9]} 9... Nc6 {[%clk
0:04:52.5]} 10. d3 {[%clk 0:04:48.1]} 10... O-O {[%clk 0:04:51.2]} 11. a3 {[%clk
0:04:46.7]} 11... f5 {[%clk 0:04:50.3]} 12. b4 {[%clk 0:04:44.4]} 12... fxe4
{[%clk 0:04:48.8]} 13. Bxe4 {[%clk 0:04:44]} 13... d5 {[%clk 0:04:46.3]} 14.
cxd5 {[%clk 0:04:35.9]} 14... exd5 {[%clk 0:04:44.5]} 15. Bg2 {[%clk 0:04:34.9]}
15... Be6 {[%clk 0:04:42.5]} 16. Nf4 {[%clk 0:04:33.1]} 16... Bf7 {[%clk
0:04:39.2]} 17. Bb2 {[%clk 0:04:28.8]} 17... Ne7 {[%clk 0:04:37.7]} 18. Rc1
{[%clk 0:04:25.8]} 18... Qd7 {[%clk 0:04:35.7]} 19. Ne2 {[%clk 0:04:24]} 19...
Nf5 {[%clk 0:04:32.4]} 20. g4 {[%clk 0:04:19.9]} 20... Nh4 {[%clk 0:04:30.7]}
21. h3 {[%clk 0:04:10.8]} 21... h5 {[%clk 0:04:25.7]} 22. Nxd4 {[%clk
0:04:04.7]} 22... Nxg2 {[%clk 0:04:23.1]} 23. Kxg2 {[%clk 0:04:03.4]} 23... hxg4
{[%clk 0:04:20]} 24. Qxg4 {[%clk 0:03:59.3]} 24... Qxg4+ {[%clk 0:04:18]} 25.
hxg4 {[%clk 0:03:58.5]} 25... Rac8 {[%clk 0:04:15.4]} 26. Ba1 {[%clk 0:03:33.1]}
26... Rxc1 {[%clk 0:04:11.8]} 27. Rxc1 {[%clk 0:03:31.3]} 27... Re8 {[%clk
0:03:56.5]} 28. Kf3 {[%clk 0:03:26.8]} 28... Rf8 {[%clk 0:03:51.4]} 29. Kg3
{[%clk 0:03:20.6]} 29... Be5+ {[%clk 0:03:46]} 30. Kg2 {[%clk 0:03:19.4]} 30...
g5 {[%clk 0:03:41.2]} 31. Nf3 {[%clk 0:03:17]} 31... Bf4 {[%clk 0:03:38.9]} 32.
Rh1 {[%clk 0:03:08.2]} 32... Be6 {[%clk 0:03:37.2]} 33. Rh8+ {[%clk 0:03:01.4]}
33... Kf7 {[%clk 0:03:36]} 34. Rh7+ {[%clk 0:02:49.8]} 34... Ke8 {[%clk
0:03:34.7]} 35. Rxb7 {[%clk 0:02:45.3]} 35... Bxg4 {[%clk 0:03:33.7]} 36. Nd4
{[%clk 0:02:36.4]} 36... Rf7 {[%clk 0:03:18.4]} 37. Rxf7 {[%clk 0:02:31.5]}
37... Kxf7 {[%clk 0:03:17.5]} 38. Nc6 {[%clk 0:02:25.1]} 38... Be2 {[%clk
0:03:14.2]} 39. Nxa7 {[%clk 0:02:17]} 39... Bxd3 {[%clk 0:03:12.7]} 40. Nc6
{[%clk 0:02:15]} 40... Bb5 {[%clk 0:03:08.4]} 41. Nd4 {[%clk 0:02:12.2]} 41...
Bd7 {[%clk 0:03:06.3]} 42. b5 {[%clk 0:02:08.1]} 42... Be5 {[%clk 0:03:04.8]}
43. a4 {[%clk 0:02:00]} 43... Ke8 {[%clk 0:03:01.3]} 44. b6 {[%clk 0:01:53.2]}
44... Kd8 {[%clk 0:02:39.5]} 45. a5 {[%clk 0:01:26.3]} 45... Kc8 {[%clk
0:02:36.1]} 46. a6 {[%clk 0:01:23.7]} 46... Bxd4 {[%clk 0:02:30.7]} 47. Bxd4
{[%clk 0:01:21.7]} 47... Bb5 {[%clk 0:02:26.5]} 48. b7+ {[%clk 0:01:19]} 48...
Kb8 {[%clk 0:02:25.2]} 49. Be5+ {[%clk 0:01:18.3]} 1-0

[Event "Live Chess"]
[Site "Chess.com"]
[Date "2024.06.01"]
[Round "-"]
[White "booktrunk"]
[Black "Kyrylo7770"]
[Result "1-0"]
[WhiteElo "1397"]
[BlackElo "1642"]
[TimeControl "300"]
[EndTime "13:23:10 PDT"]
[Termination "booktrunk won by checkmate"]

1. d4 {[%clk 0:04:51.9]} 1... d5 {[%clk 0:04:59]} 2. Nc3 {[%clk 0:04:49.5]} 2...
Bg4 {[%clk 0:04:57.9]} 3. Bf4 {[%clk 0:04:49.4]} 3... Nf6 {[%clk 0:04:57.4]} 4.
Nb5 {[%clk 0:04:48.1]} 4... Na6 {[%clk 0:04:55.5]} 5. f3 {[%clk 0:04:45.3]} 5...
Bh5 {[%clk 0:04:54.5]} 6. e3 {[%clk 0:04:43.4]} 6... e6 {[%clk 0:04:53.8]} 7. h4
{[%clk 0:04:42.1]} 7... Bd6 {[%clk 0:04:51.1]} 8. g4 {[%clk 0:04:39.7]} 8...
Bxf4 {[%clk 0:04:47.5]} 9. exf4 {[%clk 0:04:38.3]} 9... Bg6 {[%clk 0:04:45.4]}
10. h5 {[%clk 0:04:36.5]} 10... Bxc2 {[%clk 0:04:44.3]} 11. Qxc2 {[%clk
0:04:34.2]} 11... c6 {[%clk 0:04:44]} 12. Nc3 {[%clk 0:04:30.1]} 12... Qd6
{[%clk 0:04:43.4]} 13. Bxa6 {[%clk 0:04:25.8]} 13... bxa6 {[%clk 0:04:41.6]} 14.
Qd2 {[%clk 0:04:23.7]} 14... O-O {[%clk 0:04:39.9]} 15. Nge2 {[%clk 0:04:21.9]}
15... Rab8 {[%clk 0:04:37.8]} 16. Rb1 {[%clk 0:04:19.8]} 16... h6 {[%clk
0:04:33.2]} 17. Qe3 {[%clk 0:04:15.1]} 17... c5 {[%clk 0:04:25.6]} 18. dxc5
{[%clk 0:04:09.4]} 18... Qd7 {[%clk 0:04:22.8]} 19. g5 {[%clk 0:04:06.5]} 19...
hxg5 {[%clk 0:04:21.6]} 20. fxg5 {[%clk 0:04:04.4]} 20... Nh7 {[%clk 0:04:17.2]}
21. g6 {[%clk 0:04:02.6]} 21... fxg6 {[%clk 0:04:15.7]} 22. hxg6 {[%clk
0:04:01.3]} 22... Nf6 {[%clk 0:04:12.1]} 23. Qg5 {[%clk 0:03:58.6]} 23... Rfe8
{[%clk 0:04:06.3]} 24. Qh5 {[%clk 0:03:57.1]} 24... Kf8 {[%clk 0:04:05.8]} 25.
Qh8+ {[%clk 0:03:55.8]} 25... Ke7 {[%clk 0:04:05.3]} 26. Qxg7+ {[%clk
0:03:54.2]} 26... Kd8 {[%clk 0:04:04.7]} 27. Qxf6+ {[%clk 0:03:52.3]} 27... Kc7
{[%clk 0:04:03.4]} 28. Rh7 {[%clk 0:03:49.9]} 28... Qxh7 {[%clk 0:04:01.6]} 29.
gxh7 {[%clk 0:03:47.7]} 29... Rf8 {[%clk 0:04:00.9]} 30. Qg7+ {[%clk 0:03:41.9]}
30... Kc6 {[%clk 0:03:58.7]} 31. Rd1 {[%clk 0:03:34.1]} 31... Kxc5 {[%clk
0:03:57.2]} 32. Rd4 {[%clk 0:03:30.1]} 32... Rh8 {[%clk 0:03:53.6]} 33. Rh4
{[%clk 0:03:27.7]} 33... d4 {[%clk 0:03:50.1]} 34. Ne4+ {[%clk 0:03:25.5]} 34...
Kc4 {[%clk 0:03:49.2]} 35. Nd6+ {[%clk 0:03:21.5]} 35... Kd3 {[%clk 0:03:48.4]}
36. Nf7 {[%clk 0:03:19.8]} 36... e5 {[%clk 0:03:41.9]} 37. Nxh8 {[%clk
0:03:18.5]} 37... Rxb2 {[%clk 0:03:41.3]} 38. Nf7 {[%clk 0:03:14.6]} 38... Rb1+
{[%clk 0:03:40.4]} 39. Kf2 {[%clk 0:03:13.2]} 39... Rb2 {[%clk 0:03:39.7]} 40.
Qg6+ {[%clk 0:03:11.5]} 40... Kd2 {[%clk 0:03:38.5]} 41. Nxe5 {[%clk 0:03:05.5]}
41... Kd1 {[%clk 0:03:36.3]} 42. Rh1+ {[%clk 0:03:02.6]} 42... Kd2 {[%clk
0:03:35]} 43. Qg5+ {[%clk 0:03:01.5]} 43... Kc2 {[%clk 0:03:33.1]} 44. Rc1#
{[%clk 0:02:58.2]} 1-0

[Event "Live Chess"]
[Site "Chess.com"]
[Date "2024.06.01"]
[Round "-"]
[White "Stanbad1"]
[Black "grillage"]
[Result "1-0"]
[WhiteElo "2652"]
[BlackElo "1873"]
[TimeControl "300"]
[EndTime "13:23:20 PDT"]
[Termination "Stanbad1 won by resignation"]

1. d4 {[%clk 0:04:57.6]} 1... e6 {[%clk 0:04:58.4]} 2. Nc3 {[%clk 0:04:56.4]}
2... c5 {[%clk 0:04:46.1]} 3. d5 {[%clk 0:04:53.8]} 3... exd5 {[%clk 0:04:40.8]}
4. Nxd5 {[%clk 0:04:52.6]} 4... d6 {[%clk 0:04:33.6]} 5. e4 {[%clk 0:04:51.8]}
5... Nf6 {[%clk 0:04:30.2]} 6. Bc4 {[%clk 0:04:50.9]} 6... Nbd7 {[%clk 0:04:22]}
7. Nf3 {[%clk 0:04:47.7]} 7... Be7 {[%clk 0:04:16.9]} 8. O-O {[%clk 0:04:46.4]}
8... O-O {[%clk 0:04:15.3]} 9. Bf4 {[%clk 0:04:45]} 9... Nb6 {[%clk 0:04:05.6]}
10. Nxe7+ {[%clk 0:04:41.9]} 10... Qxe7 {[%clk 0:04:03.5]} 11. Bxd6 {[%clk
0:04:41.3]} 11... Qxe4 {[%clk 0:03:49.9]} 12. Bd3 {[%clk 0:04:38.3]} 12... Qd5
{[%clk 0:03:20.4]} 13. Bxf8 {[%clk 0:04:34.9]} 13... Kxf8 {[%clk 0:03:20]} 14.
b3 {[%clk 0:04:33.3]} 14... Bg4 {[%clk 0:03:14.6]} 15. h3 {[%clk 0:04:27.3]}
15... Bh5 {[%clk 0:03:06.4]} 16. Be2 {[%clk 0:04:25.3]} 16... Qc6 {[%clk
0:03:01.3]} 17. Ne5 {[%clk 0:04:23.2]} 17... Bxe2 {[%clk 0:02:58]} 18. Qxe2
{[%clk 0:04:21.8]} 18... Qe6 {[%clk 0:02:50.1]} 19. Rfe1 {[%clk 0:04:19.9]}
19... Re8 {[%clk 0:02:47.5]} 20. Rad1 {[%clk 0:04:17.6]} 20... Qf5 {[%clk
0:02:38]} 21. Rd3 {[%clk 0:04:08.7]} 21... g6 {[%clk 0:02:27.9]} 22. Rf3 {[%clk
0:04:06.4]} 22... Qg5 {[%clk 0:02:24]} 23. Rxf6 {[%clk 0:04:02.2]} 23... Qxf6
{[%clk 0:02:22.4]} 24. Nd7+ {[%clk 0:04:01.1]} 24... Nxd7 {[%clk 0:02:21]} 25.
Qxe8+ {[%clk 0:03:59.9]} 25... Kg7 {[%clk 0:02:20.6]} 26. Qxd7 {[%clk
0:03:59.6]} 1-0

[Event "Live Chess"]
[Site "Chess.com"]
[Date "2024.06.01"]
[Round "-"]
[White "dhairyapandyauk"]
[Black "Silverback7829"]
[Result "1-0"]
[WhiteElo "1658"]
[BlackElo "980"]
[TimeControl "300"]
[EndTime "13:23:38 PDT"]
[Termination "dhairyapandyauk won by checkmate"]

1. e4 {[%clk 0:04:57.7]} 1... e5 {[%clk 0:04:58.6]} 2. Nf3 {[%clk 0:04:56.6]}
2... Nc6 {[%clk 0:04:57]} 3. c3 {[%clk 0:04:55.8]} 3... Nf6 {[%clk 0:04:55.7]}
4. d4 {[%clk 0:04:55.2]} 4... d6 {[%clk 0:04:54.2]} 5. dxe5 {[%clk 0:04:54.1]}
5... dxe5 {[%clk 0:04:52.2]} 6. Qxd8+ {[%clk 0:04:53.7]} 6... Nxd8 {[%clk
0:04:50.1]} 7. Nxe5 {[%clk 0:04:52.1]} 7... Nxe4 {[%clk 0:04:45.4]} 8. Bd3
{[%clk 0:04:45]} 8... Nc6 {[%clk 0:04:36.7]} 9. Nxc6 {[%clk 0:04:42.7]} 9...
bxc6 {[%clk 0:04:33.9]} 10. Bxe4 {[%clk 0:04:42]} 10... Bd6 {[%clk 0:04:26]} 11.
Bxc6+ {[%clk 0:04:41]} 11... Kd8 {[%clk 0:04:13]} 12. Bxa8 {[%clk 0:04:40.4]}
12... Re8+ {[%clk 0:04:06.4]} 13. Kd1 {[%clk 0:04:39]} 13... Bg4+ {[%clk
0:03:51.8]} 14. Bf3 {[%clk 0:04:38.4]} 14... Bxf3+ {[%clk 0:03:45.7]} 15. gxf3
{[%clk 0:04:37.8]} 15... f6 {[%clk 0:03:39.4]} 16. Be3 {[%clk 0:04:35.9]} 16...
Be5 {[%clk 0:03:25.6]} 17. Nd2 {[%clk 0:04:34.6]} 17... Kc8 {[%clk 0:03:19.5]}
18. Kc2 {[%clk 0:04:34]} 18... Rd8 {[%clk 0:03:16.7]} 19. Rhe1 {[%clk
0:04:33.6]} 19... h6 {[%clk 0:03:12.3]} 20. Rad1 {[%clk 0:04:33.1]} 20... c6
{[%clk 0:03:05.7]} 21. Nc4 {[%clk 0:04:32.6]} 21... Bxh2 {[%clk 0:02:58.4]} 22.
Rxd8+ {[%clk 0:04:30.1]} 22... Kxd8 {[%clk 0:02:55.3]} 23. Bxa7 {[%clk
0:04:29.6]} 23... Bf4 {[%clk 0:02:47.4]} 24. b4 {[%clk 0:04:27.9]} 24... Kc7
{[%clk 0:02:38.3]} 25. a4 {[%clk 0:04:24.5]} 25... Kb7 {[%clk 0:02:32.1]} 26.
Re7+ {[%clk 0:04:23]} 26... Bc7 {[%clk 0:02:26.1]} 27. Bb6 {[%clk 0:04:21.3]}
27... Kc8 {[%clk 0:02:16.3]} 28. Rxc7+ {[%clk 0:04:20.4]} 28... Kb8 {[%clk
0:02:07.8]} 29. a5 {[%clk 0:04:19.8]} 29... g5 {[%clk 0:02:01.8]} 30. a6 {[%clk
0:04:19.2]} 30... h5 {[%clk 0:01:53.2]} 31. a7+ {[%clk 0:04:18.7]} 31... Ka8
{[%clk 0:01:45.5]} 32. Rc8+ {[%clk 0:04:18.2]} 32... Kb7 {[%clk 0:01:40.5]} 33.
a8=Q# {[%clk 0:04:17.3]} 1-0

[Event "Live Chess"]
[Site "Chess.com"]
[Date "2024.06.01"]
[Round "-"]
[White "WelshTiger"]
[Black "GEMdzq"]
[Result "0-1"]
[WhiteElo "2536"]
[BlackElo "2287"]
[TimeControl "300"]
[EndTime "13:23:49 PDT"]
[Termination "GEMdzq won by checkmate"]

1. e4 {[%clk 0:04:54.8]} 1... Nf6 {[%clk 0:04:57.9]} 2. Nc3 {[%clk 0:04:51.5]}
2... d6 {[%clk 0:04:55.4]} 3. Nf3 {[%clk 0:04:47.3]} 3... g6 {[%clk 0:04:54]} 4.
h3 {[%clk 0:04:44.5]} 4... Bg7 {[%clk 0:04:52.9]} 5. d4 {[%clk 0:04:43.5]} 5...
O-O {[%clk 0:04:51.1]} 6. Be3 {[%clk 0:04:39.4]} 6... c6 {[%clk 0:04:50.2]} 7.
a4 {[%clk 0:04:25.7]} 7... Na6 {[%clk 0:04:41.2]} 8. Be2 {[%clk 0:04:21.5]} 8...
c5 {[%clk 0:04:38.9]} 9. d5 {[%clk 0:04:14.4]} 9... e6 {[%clk 0:04:18.9]} 10.
dxe6 {[%clk 0:04:06.7]} 10... Bxe6 {[%clk 0:04:17.9]} 11. O-O {[%clk 0:04:01.9]}
11... Rc8 {[%clk 0:04:16.4]} 12. Qd2 {[%clk 0:03:40.3]} 12... d5 {[%clk
0:04:11.4]} 13. exd5 {[%clk 0:03:35.3]} 13... Nxd5 {[%clk 0:04:10.3]} 14. Nxd5
{[%clk 0:03:33.8]} 14... Qxd5 {[%clk 0:04:08.9]} 15. Qxd5 {[%clk 0:03:31.1]}
15... Bxd5 {[%clk 0:04:08.8]} 16. Rad1 {[%clk 0:03:25.8]} 16... Be4 {[%clk
0:03:53.8]} 17. c3 {[%clk 0:03:23]} 17... Bc2 {[%clk 0:03:51.5]} 18. Rd7 {[%clk
0:03:17.7]} 18... Rc7 {[%clk 0:03:18]} 19. Rxc7 {[%clk 0:03:13.7]} 19... Nxc7
{[%clk 0:03:17.9]} 20. Bxc5 {[%clk 0:03:09.2]} 20... Re8 {[%clk 0:03:17.1]} 21.
Bc4 {[%clk 0:03:01.6]} 21... b6 {[%clk 0:03:10.9]} 22. Bd6 {[%clk 0:03:00.9]}
22... Rc8 {[%clk 0:02:49.6]} 23. a5 {[%clk 0:02:56.8]} 23... Ne8 {[%clk
0:02:47.2]} 24. Be5 {[%clk 0:02:18.5]} 24... Rxc4 {[%clk 0:02:44.9]} 25. axb6
{[%clk 0:02:16.7]} 25... axb6 {[%clk 0:02:43.7]} 26. Ra1 {[%clk 0:02:15.2]}
26... Bxe5 {[%clk 0:02:29.7]} 27. Nxe5 {[%clk 0:02:11]} 27... Re4 {[%clk
0:02:28.7]} 28. Nd7 {[%clk 0:02:05.5]} 28... b5 {[%clk 0:02:03.4]} 29. Ra8
{[%clk 0:02:04.3]} 29... Re1+ {[%clk 0:01:59.5]} 30. Kh2 {[%clk 0:02:03.1]}
30... Kg7 {[%clk 0:01:58.3]} 31. Rb8 {[%clk 0:02:01.6]} 31... Nd6 {[%clk
0:01:56.8]} 32. Rb6 {[%clk 0:01:58.2]} 32... Ne4 {[%clk 0:01:50.4]} 33. f3
{[%clk 0:01:53.2]} 33... Nd2 {[%clk 0:01:43.6]} 34. Rxb5 {[%clk 0:01:47.5]}
34... Re2 {[%clk 0:01:41.9]} 35. Kg3 {[%clk 0:01:42.7]} 35... Nf1+ {[%clk
0:01:38.2]} 36. Kf4 {[%clk 0:01:42.1]} 36... Ba4 {[%clk 0:01:28.6]} 37. Rd5
{[%clk 0:01:38.2]} 37... Bxd7 {[%clk 0:01:27.6]} 38. Rxd7 {[%clk 0:01:37.1]}
38... Rxb2 {[%clk 0:01:26.8]} 39. c4 {[%clk 0:01:20]} 39... Rxg2 {[%clk
0:01:23.2]} 40. Rd1 {[%clk 0:01:18.2]} 40... Nd2 {[%clk 0:01:19.5]} 41. c5
{[%clk 0:01:17.7]} 41... Nb3 {[%clk 0:01:17.9]} 42. c6 {[%clk 0:01:15.9]} 42...
Rc2 {[%clk 0:01:17]} 43. Rd6 {[%clk 0:01:08]} 43... Na5 {[%clk 0:01:15.8]} 44.
c7 {[%clk 0:01:05.3]} 44... Rxc7 {[%clk 0:01:14.4]} 45. h4 {[%clk 0:01:04]}
45... h5 {[%clk 0:01:12.9]} 46. Ra6 {[%clk 0:01:02.3]} 46... Nc6 {[%clk
0:01:12]} 47. Rb6 {[%clk 0:01:01]} 47... Nd8 {[%clk 0:01:10.7]} 48. Kg3 {[%clk
0:00:59.1]} 48... Ne6 {[%clk 0:01:09.9]} 49. Ra6 {[%clk 0:00:57.5]} 49... Rc1
{[%clk 0:01:08.1]} 50. Ra4 {[%clk 0:00:55.8]} 50... Rg1+ {[%clk 0:01:06.5]} 51.
Kf2 {[%clk 0:00:55.1]} 51... Rd1 {[%clk 0:01:03.1]} 52. Kg2 {[%clk 0:00:54.6]}
52... Rd4 {[%clk 0:01:01.9]} 53. Ra5 {[%clk 0:00:51.4]} 53... Rxh4 {[%clk
0:01:00.4]} 54. Kg3 {[%clk 0:00:51.1]} 54... Rb4 {[%clk 0:00:59.1]} 55. Rd5
{[%clk 0:00:49.8]} 55... Kf6 {[%clk 0:00:57.9]} 56. Ra5 {[%clk 0:00:47.3]} 56...
g5 {[%clk 0:00:56.9]} 57. Ra6 {[%clk 0:00:45.9]} 57... Rb3 {[%clk 0:00:56.2]}
58. Kg2 {[%clk 0:00:44.9]} 58... Kf5 {[%clk 0:00:55.2]} 59. Ra5+ {[%clk
0:00:43.5]} 59... Kg6 {[%clk 0:00:54.5]} 60. Kg3 {[%clk 0:00:42.1]} 60... h4+
{[%clk 0:00:52.9]} 61. Kg2 {[%clk 0:00:37.6]} 61... Nf4+ {[%clk 0:00:52.2]} 62.
Kh2 {[%clk 0:00:34.7]} 62... Rb2+ {[%clk 0:00:49.9]} 63. Kh1 {[%clk 0:00:34.2]}
63... Rf2 {[%clk 0:00:46]} 64. Ra3 {[%clk 0:00:32.6]} 64... h3 {[%clk
0:00:41.1]} 65. Rb3 {[%clk 0:00:31]} 65... f6 {[%clk 0:00:39.6]} 66. Ra3 {[%clk
0:00:30.1]} 66... Nh5 {[%clk 0:00:37.5]} 67. f4 {[%clk 0:00:27.3]} 67... Nxf4
{[%clk 0:00:35.7]} 68. Rg3 {[%clk 0:00:23.2]} 68... Kh5 {[%clk 0:00:33.3]} 69.
Ra3 {[%clk 0:00:22.1]} 69... Kh4 {[%clk 0:00:32.1]} 70. Rb3 {[%clk 0:00:20.9]}
70... Rc2 {[%clk 0:00:30]} 71. Ra3 {[%clk 0:00:19]} 71... g4 {[%clk 0:00:29.2]}
72. Rb3 {[%clk 0:00:17.2]} 72... Rc1+ {[%clk 0:00:28.4]} 73. Kh2 {[%clk
0:00:15.6]} 73... Rc2+ {[%clk 0:00:25.9]} 74. Kh1 {[%clk 0:00:14.4]} 74... g3
{[%clk 0:00:25.3]} 75. Rb1 {[%clk 0:00:13.4]} 75... h2 {[%clk 0:00:19.6]} 76.
Ra1 {[%clk 0:00:09.9]} 76... Kh3 {[%clk 0:00:18.4]} 77. Ra3 {[%clk 0:00:04.7]}
77... Rc1# {[%clk 0:00:17.2]} 0-1

[Event "Live Chess"]
[Site "Chess.com"]
[Date "2024.06.01"]
[Round "-"]
[White "JanMur7"]
[Black "AlexanderMatlak"]
[Result "1-0"]
[WhiteElo "2324"]
[BlackElo "2474"]
[TimeControl "300"]
[EndTime "13:24:05 PDT"]
[Termination "JanMur7 won by resignation"]

1. c4 {[%clk 0:04:58.5]} 1... Nf6 {[%clk 0:04:58.4]} 2. Nc3 {[%clk 0:04:57.3]}
2... b6 {[%clk 0:04:51.7]} 3. g3 {[%clk 0:04:54]} 3... Bb7 {[%clk 0:04:50.5]} 4.
Nf3 {[%clk 0:04:53.6]} 4... c5 {[%clk 0:04:49.6]} 5. Bg2 {[%clk 0:04:52.4]} 5...
e6 {[%clk 0:04:48.9]} 6. O-O {[%clk 0:04:51.8]} 6... Be7 {[%clk 0:04:46.8]} 7.
d4 {[%clk 0:04:50.7]} 7... cxd4 {[%clk 0:04:45.7]} 8. Nxd4 {[%clk 0:04:50.6]}
8... Bxg2 {[%clk 0:04:44.8]} 9. Kxg2 {[%clk 0:04:50.5]} 9... a6 {[%clk
0:04:42.7]} 10. e4 {[%clk 0:04:48.2]} 10... Qc7 {[%clk 0:04:41.5]} 11. b3 {[%clk
0:04:38.4]} 11... b5 {[%clk 0:04:40]} 12. Qd3 {[%clk 0:04:29.4]} 12... bxc4
{[%clk 0:04:37.6]} 13. Qxc4 {[%clk 0:04:21.7]} 13... Qxc4 {[%clk 0:04:36.5]} 14.
bxc4 {[%clk 0:04:21.6]} 14... O-O {[%clk 0:04:23.9]} 15. Rb1 {[%clk 0:03:59.1]}
15... Rc8 {[%clk 0:04:18.3]} 16. Na4 {[%clk 0:03:41.5]} 16... Bd8 {[%clk
0:03:52]} 17. c5 {[%clk 0:03:33.6]} 17... Nxe4 {[%clk 0:03:47.6]} 18. Nb6 {[%clk
0:03:21.5]} 18... Bxb6 {[%clk 0:03:46.2]} 19. cxb6 {[%clk 0:03:21.4]} 19... Rc4
{[%clk 0:03:39]} 20. b7 {[%clk 0:03:14]} 20... Ra7 {[%clk 0:03:37.7]} 21. Be3
{[%clk 0:03:12]} 21... Rc7 {[%clk 0:02:25.6]} 22. Nxe6 {[%clk 0:02:58.6]} 22...
Rcxb7 {[%clk 0:02:02.8]} 23. Bxa7 {[%clk 0:02:56.4]} 23... Rxb1 {[%clk
0:01:59.9]} 24. Rxb1 {[%clk 0:02:55]} 24... Nc6 {[%clk 0:01:59.8]} 25. Nd4
{[%clk 0:02:49.3]} 1-0

[Event "Live Chess"]
[Site "Chess.com"]
[Date "2024.06.01"]
[Round "-"]
[White "Cruiseylee78"]
[Black "GoldsmanB"]
[Result "1-0"]
[WhiteElo "1681"]
[BlackElo "1083"]
[TimeControl "300"]
[EndTime "13:25:01 PDT"]
[Termination "Cruiseylee78 won by resignation"]

1. d4 {[%clk 0:04:58.8]} 1... e6 {[%clk 0:04:58.1]} 2. Bf4 {[%clk 0:04:58.1]}
2... d5 {[%clk 0:04:56.4]} 3. e3 {[%clk 0:04:57.6]} 3... Bd6 {[%clk 0:04:54.2]}
4. Bg3 {[%clk 0:04:56.6]} 4... c5 {[%clk 0:04:53.2]} 5. Nf3 {[%clk 0:04:55.2]}
5... Nc6 {[%clk 0:04:50.5]} 6. c3 {[%clk 0:04:54.3]} 6... Nge7 {[%clk
0:04:48.9]} 7. Bd3 {[%clk 0:04:53.3]} 7... c4 {[%clk 0:04:46.9]} 8. Be2 {[%clk
0:04:52.5]} 8... Qb6 {[%clk 0:04:45.1]} 9. Qc2 {[%clk 0:04:51]} 9... Bd7 {[%clk
0:04:43.2]} 10. Nbd2 {[%clk 0:04:47.7]} 10... Bxg3 {[%clk 0:04:40.5]} 11. hxg3
{[%clk 0:04:46.9]} 11... Nf5 {[%clk 0:04:36.6]} 12. g4 {[%clk 0:04:34.4]} 12...
Nfe7 {[%clk 0:04:33.5]} 13. Ne5 {[%clk 0:04:33.3]} 13... Nxe5 {[%clk 0:04:31.7]}
14. dxe5 {[%clk 0:04:33.2]} 14... Qc7 {[%clk 0:04:29.5]} 15. Nf3 {[%clk
0:04:31.5]} 15... O-O-O {[%clk 0:04:27.5]} 16. b4 {[%clk 0:04:29.4]} 16... cxb3
{[%clk 0:04:24.4]} 17. axb3 {[%clk 0:04:29.3]} 17... Nc6 {[%clk 0:04:22.9]} 18.
Bb5 {[%clk 0:04:26.3]} 18... Nxe5 {[%clk 0:04:20.1]} 19. Nxe5 {[%clk 0:04:25.4]}
19... Qxe5 {[%clk 0:04:18.4]} 20. Bxd7+ {[%clk 0:04:23.1]} 20... Rxd7 {[%clk
0:04:17.3]} 21. Rxa7 {[%clk 0:04:22.1]} 21... Rc7 {[%clk 0:04:08.5]} 22. Ra8+
{[%clk 0:04:20.2]} 22... Kd7 {[%clk 0:04:07.5]} 23. Rxh8 {[%clk 0:04:18]} 23...
Rxc3 {[%clk 0:04:06.1]} 24. Qd2 {[%clk 0:04:10.5]} 24... g6 {[%clk 0:03:59.9]}
25. R8xh7 {[%clk 0:04:08.9]} 25... Qc7 {[%clk 0:03:56.9]} 26. Rxf7+ {[%clk
0:04:07.5]} 26... Kc8 {[%clk 0:03:51.8]} 27. Rxc7+ {[%clk 0:04:07.4]} 1-0

[Event "Live Chess"]
[Site "Chess.com"]
[Date "2024.06.01"]
[Round "-"]
[White "ProfPoisson"]
[Black "Queensandpawns"]
[Result "0-1"]
[WhiteElo "1293"]
[BlackElo "2368"]
[TimeControl "300"]
[EndTime "13:25:15 PDT"]
[Termination "Queensandpawns won on time"]

1. e4 {[%clk 0:04:54.8]} 1... d5 {[%clk 0:04:56.7]} 2. exd5 {[%clk 0:04:53.2]}
2... c6 {[%clk 0:04:56.6]} 3. Nf3 {[%clk 0:04:49.6]} 3... c5 {[%clk 0:04:51.4]}
4. Bb5+ {[%clk 0:04:43.5]} 4... Bd7 {[%clk 0:04:48.2]} 5. Bxd7+ {[%clk
0:04:41.7]} 5... Nxd7 {[%clk 0:04:48.1]} 6. O-O {[%clk 0:04:39.3]} 6... Ngf6
{[%clk 0:04:48]} 7. Nc3 {[%clk 0:04:33.9]} 7... g6 {[%clk 0:04:47.9]} 8. d3
{[%clk 0:04:29.3]} 8... Bg7 {[%clk 0:04:47.8]} 9. d6 {[%clk 0:04:25.4]} 9... O-O
{[%clk 0:04:47.7]} 10. dxe7 {[%clk 0:04:21.9]} 10... Qxe7 {[%clk 0:04:47.6]} 11.
Re1 {[%clk 0:04:17.1]} 11... Qd6 {[%clk 0:04:45.6]} 12. Nb5 {[%clk 0:04:12.6]}
12... Qc6 {[%clk 0:04:44.3]} 13. a4 {[%clk 0:04:07.9]} 13... Rfe8 {[%clk
0:04:43.7]} 14. Rxe8+ {[%clk 0:04:01.8]} 14... Rxe8 {[%clk 0:04:43.6]} 15. Nxa7
{[%clk 0:03:58.9]} 15... Qe6 {[%clk 0:04:40.2]} 16. Bg5 {[%clk 0:03:50.8]} 16...
Nd5 {[%clk 0:04:35.8]} 17. c4 {[%clk 0:03:37]} 17... Nb4 {[%clk 0:04:31.8]} 18.
Nb5 {[%clk 0:03:31]} 18... h6 {[%clk 0:04:26]} 19. Bf4 {[%clk 0:03:16.3]} 19...
Qf5 {[%clk 0:04:23.6]} 20. Nd6 {[%clk 0:03:10.8]} 20... Qxf4 {[%clk 0:04:22.7]}
21. Nxe8 {[%clk 0:03:08.7]} 21... Bxb2 {[%clk 0:04:22.1]} 22. Rb1 {[%clk
0:02:58.6]} 22... Bc3 {[%clk 0:04:21.6]} 23. Qe2 {[%clk 0:02:45.7]} 23... Qb8
{[%clk 0:04:07.3]} 24. Rc1 {[%clk 0:02:20.5]} 24... Bh8 {[%clk 0:04:00.8]} 25.
Nd2 {[%clk 0:01:57.4]} 25... Qf4 {[%clk 0:03:56.3]} 26. g3 {[%clk 0:01:45.6]}
26... Qd4 {[%clk 0:03:44.5]} 27. Qf3 {[%clk 0:01:41.8]} 27... Nxd3 {[%clk
0:03:40.1]} 28. Rd1 {[%clk 0:01:25]} 28... N7e5 {[%clk 0:03:38]} 29. Nf6+ {[%clk
0:01:17.6]} 29... Kg7 {[%clk 0:03:30.5]} 30. Nh5+ {[%clk 0:00:54.7]} 30... gxh5
{[%clk 0:03:27.1]} 31. Qe3 {[%clk 0:00:49.1]} 31... Qxe3 {[%clk 0:03:16.8]} 32.
fxe3 {[%clk 0:00:47]} 32... Ng4 {[%clk 0:03:16.7]} 33. Nf3 {[%clk 0:00:42.6]}
33... Nb2 {[%clk 0:03:11]} 34. Rd7 {[%clk 0:00:39.9]} 34... Nxa4 {[%clk
0:03:05.7]} 35. Rxb7 {[%clk 0:00:38.4]} 35... Nxe3 {[%clk 0:03:02]} 36. Ne5
{[%clk 0:00:35.4]} 36... Kf6 {[%clk 0:02:59]} 37. Nd7+ {[%clk 0:00:29.5]} 37...
Ke6 {[%clk 0:02:56.5]} 38. Nf8+ {[%clk 0:00:20.3]} 38... Kd6 {[%clk 0:02:53.2]}
39. Rd7+ {[%clk 0:00:17.2]} 39... Kc6 {[%clk 0:02:48.5]} 40. Rxf7 {[%clk
0:00:16]} 40... Bd4 {[%clk 0:02:48.4]} 41. Kf2 {[%clk 0:00:09.9]} 41... Nc3
{[%clk 0:02:47.2]} 42. Kf3 {[%clk 0:00:05.6]} 42... Ncd1 {[%clk 0:02:46.1]} 43.
Ne6 {[%clk 0:00:02.1]} 43... Nxc4 {[%clk 0:02:45.6]} 44. Nxd4+ {[%clk
0:00:00.4]} 44... Kb6 {[%clk 0:02:44.3]} 0-1